[Event "*** Titled Tuesday 3|2 Blitz"]
[Site "Chess.com"]
[Date "2017.03.07"]
[Round "11"]
[White "Incognito_Knight"]
[Black "TenisMaster"]
[Result "0-1"]
[WhiteElo "2420"]
[BlackElo "2612"]
[TimeControl "180+2"]
[EndTime "15:40:35 PST"]
[Termination "TenisMaster won on time"]

1. e4 {[%clk 0:02:57.1]} 1... g6 {[%clk 0:02:57.4]} 2. d4 {[%clk 0:02:56.9]}
2... Bg7 {[%clk 0:02:58.6]} 3. Nc3 {[%clk 0:02:54.9]} 3... d6 {[%clk 0:02:59.4]}
4. f4 {[%clk 0:02:55.3]} 4... a6 {[%clk 0:02:58.9]} 5. Nf3 {[%clk 0:02:56.3]}
5... b5 {[%clk 0:02:58.8]} 6. Bd3 {[%clk 0:02:57.2]} 6... Bb7 {[%clk 0:02:58.8]}
7. O-O {[%clk 0:02:54.9]} 7... Nd7 {[%clk 0:02:59.1]} 8. e5 {[%clk 0:02:55.5]}
8... Nb6 {[%clk 0:02:55.7]} 9. Be4 {[%clk 0:02:44.5]} 9... Bxe4 {[%clk
0:02:49.8]} 10. Nxe4 {[%clk 0:02:46.4]} 10... Nh6 {[%clk 0:02:51.4]} 11. Qe1
{[%clk 0:02:34]} 11... O-O {[%clk 0:02:43.7]} 12. c3 {[%clk 0:02:34]} 12... f6
{[%clk 0:02:43.4]} 13. Qh4 {[%clk 0:02:21.2]} 13... Qd7 {[%clk 0:02:39.6]} 14.
Bd2 {[%clk 0:01:56.3]} 14... Qg4 {[%clk 0:02:37.6]} 15. Qxg4 {[%clk 0:01:47.4]}
15... Nxg4 {[%clk 0:02:38.3]} 16. h3 {[%clk 0:01:48.7]} 16... Nh6 {[%clk
0:02:39.2]} 17. Rae1 {[%clk 0:01:46.8]} 17... Nd5 {[%clk 0:02:39.5]} 18. b3
{[%clk 0:01:39.8]} 18... Rab8 {[%clk 0:02:39.1]} 19. e6 {[%clk 0:01:34.8]} 19...
c6 {[%clk 0:02:27]} 20. Nf2 {[%clk 0:01:26.7]} 20... f5 {[%clk 0:02:14.5]} 21.
Nd3 {[%clk 0:01:15.8]} 21... Rb7 {[%clk 0:02:05.2]} 22. Re2 {[%clk 0:01:06.5]}
22... Rc8 {[%clk 0:01:58.9]} 23. Rc1 {[%clk 0:01:03.6]} 23... Rf8 {[%clk
0:01:51]} 24. Be1 {[%clk 0:01:03.4]} 24... Nc7 {[%clk 0:01:47.6]} 25. Bf2 {[%clk
0:00:50.4]} 25... Rf6 {[%clk 0:01:35.2]} 26. Rce1 {[%clk 0:00:50.7]} 26... Nd5
{[%clk 0:01:33.9]} 27. c4 {[%clk 0:00:45.8]} 27... bxc4 {[%clk 0:01:25.6]} 28.
bxc4 {[%clk 0:00:47.7]} 28... Nc3 {[%clk 0:01:26.9]} 29. Rc2 {[%clk 0:00:46.8]}
29... Ne4 {[%clk 0:01:27.6]} 30. d5 {[%clk 0:00:43.3]} 30... Rf8 {[%clk
0:01:24]} 31. dxc6 {[%clk 0:00:36.8]} 31... Rc7 {[%clk 0:01:25]} 32. Nb4 {[%clk
0:00:37.5]} 32... Nxf2 {[%clk 0:01:08.7]} 33. Kxf2 {[%clk 0:00:38]} 33... Re8
{[%clk 0:01:08.5]} 34. Nxa6 {[%clk 0:00:29.3]} 34... Rxc6 {[%clk 0:01:09.2]} 35.
Nb4 {[%clk 0:00:30.4]} 35... Rc5 {[%clk 0:01:08.4]} 36. Nd5 {[%clk 0:00:28.7]}
36... Kf8 {[%clk 0:00:56.8]} 37. Ng5 {[%clk 0:00:27.2]} 37... Bd4+ {[%clk
0:00:57.2]} 38. Ke2 {[%clk 0:00:26.1]} 38... Ng8 {[%clk 0:00:53.8]} 39. Kd3
{[%clk 0:00:25.8]} 39... Bf6 {[%clk 0:00:52.7]} 40. Nxh7+ {[%clk 0:00:22.7]}
40... Kg7 {[%clk 0:00:54.2]} 41. Ng5 {[%clk 0:00:23.7]} 41... Ra8 {[%clk
0:00:52.3]} 42. Rb1 {[%clk 0:00:23.7]} 42... Ra7 {[%clk 0:00:49.7]} 43. Rb8
{[%clk 0:00:21.1]} 43... Ra3+ {[%clk 0:00:47]} 44. Ke2 {[%clk 0:00:20.8]} 44...
Ra7 {[%clk 0:00:44.1]} 45. Nb6 {[%clk 0:00:18.8]} 45... Bxg5 {[%clk 0:00:38.1]}
46. fxg5 {[%clk 0:00:20.7]} 46... Re5+ {[%clk 0:00:39.7]} 47. Kd3 {[%clk
0:00:21.8]} 47... Rxe6 {[%clk 0:00:41.5]} 48. a4 {[%clk 0:00:22.1]} 48... f4
{[%clk 0:00:40]} 49. Ra2 {[%clk 0:00:22.2]} 49... Re3+ {[%clk 0:00:40.8]} 50.
Kd2 {[%clk 0:00:22.5]} 50... e5 {[%clk 0:00:40.8]} 51. a5 {[%clk 0:00:23]} 51...
Ne7 {[%clk 0:00:40.8]} 52. a6 {[%clk 0:00:23.3]} 52... Nc6 {[%clk 0:00:41.8]}
53. Rb7+ {[%clk 0:00:23.5]} 53... Kf8 {[%clk 0:00:42.7]} 54. Nc8 {[%clk
0:00:23.4]} 54... Ra8 {[%clk 0:00:41.3]} 55. Nxd6 {[%clk 0:00:24.4]} 55... Rg3
{[%clk 0:00:42.1]} 56. Ke1 {[%clk 0:00:24.7]} 56... Rd3 {[%clk 0:00:37.2]} 57.
c5 {[%clk 0:00:24.7]} 57... Rc3 {[%clk 0:00:26.4]} 58. Rb5 {[%clk 0:00:19.9]}
58... Nd4 {[%clk 0:00:25.8]} 59. Rb6 {[%clk 0:00:20]} 59... Rxc5 {[%clk
0:00:25.5]} 60. a7 {[%clk 0:00:21.3]} 60... Nc6 {[%clk 0:00:26.1]} 61. Nb5
{[%clk 0:00:19.3]} 61... e4 {[%clk 0:00:24.1]} 62. Rb7 {[%clk 0:00:19.8]} 62...
e3 {[%clk 0:00:23.4]} 63. Nc7 {[%clk 0:00:19.9]} 63... Rc1+ {[%clk 0:00:21.7]}
64. Ke2 {[%clk 0:00:21.2]} 64... Nd4+ {[%clk 0:00:22.4]} 65. Kd3 {[%clk
0:00:21.5]} 65... Rd1+ {[%clk 0:00:24]} 66. Kc4 {[%clk 0:00:19.8]} 66... Rxa7
{[%clk 0:00:24.7]} 67. Raxa7 {[%clk 0:00:19.5]} 67... e2 {[%clk 0:00:25.3]} 68.
Ne6+ {[%clk 0:00:19.5]} 68... Nxe6 {[%clk 0:00:26.3]} 69. Rb8+ {[%clk
0:00:19.8]} 69... Nd8 {[%clk 0:00:27.1]} 70. Rxd8+ {[%clk 0:00:07]} 70... Rxd8
{[%clk 0:00:27.3]} 71. Ra1 {[%clk 0:00:08.5]} 71... Rd1 {[%clk 0:00:27.6]} 0-1

[Event "*** Titled Tuesday 3|2 Blitz"]
[Site "Chess.com"]
[Date "2017.03.07"]
[Round "11"]
[White "jcibarra"]
[Black "wnstop"]
[Result "1-0"]
[WhiteElo "2654"]
[BlackElo "2468"]
[TimeControl "180+2"]
[EndTime "15:41:13 PST"]
[Termination "jcibarra won by resignation"]

1. e4 {[%clk 0:03:02]} 1... c5 {[%clk 0:03:00.8]} 2. Nf3 {[%clk 0:03:02.8]} 2...
Nc6 {[%clk 0:03:02]} 3. d4 {[%clk 0:03:04.1]} 3... cxd4 {[%clk 0:03:02.9]} 4.
Nxd4 {[%clk 0:03:06]} 4... e5 {[%clk 0:03:04.5]} 5. Nb5 {[%clk 0:03:06.5]} 5...
d6 {[%clk 0:03:05.9]} 6. N1c3 {[%clk 0:03:07.6]} 6... a6 {[%clk 0:03:06.7]} 7.
Na3 {[%clk 0:03:09.2]} 7... Be7 {[%clk 0:03:07.7]} 8. Nc4 {[%clk 0:03:09.4]}
8... b5 {[%clk 0:03:08.7]} 9. Ne3 {[%clk 0:03:10.3]} 9... Nf6 {[%clk 0:03:09.9]}
10. Ned5 {[%clk 0:03:09.3]} 10... O-O {[%clk 0:03:08.7]} 11. Be3 {[%clk
0:03:08.7]} 11... Nxd5 {[%clk 0:03:05.7]} 12. Nxd5 {[%clk 0:03:09.5]} 12... Rb8
{[%clk 0:02:52.5]} 13. Qd2 {[%clk 0:03:08.7]} 13... Be6 {[%clk 0:02:47]} 14. Be2
{[%clk 0:02:55.1]} 14... Bxd5 {[%clk 0:02:43.7]} 15. Qxd5 {[%clk 0:02:54.3]}
15... Nd4 {[%clk 0:02:17.8]} 16. Bxd4 {[%clk 0:02:42.5]} 16... exd4 {[%clk
0:02:18.4]} 17. O-O {[%clk 0:02:43.7]} 17... Qb6 {[%clk 0:02:14.5]} 18. Bd3
{[%clk 0:02:44]} 18... Bf6 {[%clk 0:02:14.4]} 19. a4 {[%clk 0:02:35.1]} 19...
Qc5 {[%clk 0:02:09.3]} 20. axb5 {[%clk 0:02:17.7]} 20... Qxd5 {[%clk 0:02:06.4]}
21. exd5 {[%clk 0:02:17.8]} 21... axb5 {[%clk 0:02:07.9]} 22. b4 {[%clk
0:02:18]} 22... Rfe8 {[%clk 0:01:56.3]} 23. Ra5 {[%clk 0:02:11.2]} 23... g6
{[%clk 0:01:33.5]} 24. Rfa1 {[%clk 0:02:08.9]} 24... Bg5 {[%clk 0:01:28.8]} 25.
Rd1 {[%clk 0:01:56.4]} 25... Rb6 {[%clk 0:01:11.2]} 26. g3 {[%clk 0:01:57.3]}
26... Reb8 {[%clk 0:01:10.4]} 27. f4 {[%clk 0:01:53.2]} 27... Bf6 {[%clk
0:01:11.3]} 28. Rda1 {[%clk 0:01:50.3]} 28... Kg7 {[%clk 0:01:05.3]} 29. Ra7
{[%clk 0:01:49.5]} 29... g5 {[%clk 0:01:04.4]} 30. Kf2 {[%clk 0:01:49.8]} 30...
R8b7 {[%clk 0:00:53.4]} 31. Rxb7 {[%clk 0:01:44.1]} 31... Rxb7 {[%clk
0:00:54.2]} 32. Ra6 {[%clk 0:01:42]} 32... gxf4 {[%clk 0:00:52.6]} 33. Rxd6
{[%clk 0:01:39.7]} 33... fxg3+ {[%clk 0:00:51.9]} 34. hxg3 {[%clk 0:01:41.6]}
34... Be7 {[%clk 0:00:51.7]} 35. Rc6 {[%clk 0:01:33.5]} 35... Bxb4 {[%clk
0:00:52.4]} 36. Kf3 {[%clk 0:01:35.2]} 36... Rd7 {[%clk 0:00:51.5]} 37. Ke4
{[%clk 0:01:36.2]} 37... Bd6 {[%clk 0:00:50.8]} 38. g4 {[%clk 0:01:33.6]} 38...
b4 {[%clk 0:00:51.1]} 39. Kxd4 {[%clk 0:01:34.4]} 39... Rd8 {[%clk 0:00:52.1]}
40. Bf5 {[%clk 0:01:30.5]} 40... h6 {[%clk 0:00:50.5]} 41. Ra6 {[%clk
0:01:14.5]} 41... Kf6 {[%clk 0:00:50.6]} 42. Ra7 {[%clk 0:01:10.9]} 42... h5
{[%clk 0:00:49.9]} 43. Ke4 {[%clk 0:01:03.7]} 43... h4 {[%clk 0:00:45.2]} 44.
g5+ {[%clk 0:01:01.5]} 44... Kxg5 {[%clk 0:00:43.7]} 45. Rxf7 {[%clk 0:01:03.1]}
45... Bg3 {[%clk 0:00:38.6]} 46. Be6 {[%clk 0:01:00.4]} 46... Kg6 {[%clk
0:00:34.2]} 47. Rb7 {[%clk 0:00:56.6]} 47... Bd6 {[%clk 0:00:30.1]} 48. Bf5+
{[%clk 0:00:52.3]} 48... Kf6 {[%clk 0:00:26.3]} 49. Rh7 {[%clk 0:00:52]} 49...
Bg3 {[%clk 0:00:27.1]} 50. Be6 {[%clk 0:00:53.1]} 50... Kg6 {[%clk 0:00:25.3]}
51. Bf5+ {[%clk 0:00:53.8]} 51... Kf6 {[%clk 0:00:26]} 52. Rh6+ {[%clk 0:00:54]}
52... Kg7 {[%clk 0:00:23]} 53. Rg6+ {[%clk 0:00:54.7]} 53... Kf7 {[%clk
0:00:24]} 54. Rb6 {[%clk 0:00:52.5]} 54... Bd6 {[%clk 0:00:24.1]} 55. Rb7+
{[%clk 0:00:48.3]} 55... Kf6 {[%clk 0:00:25]} 56. Bh3 {[%clk 0:00:48.8]} 56...
Re8+ {[%clk 0:00:24.4]} 57. Be6 {[%clk 0:00:49.7]} 57... Rd8 {[%clk 0:00:25.2]}
58. Kf3 {[%clk 0:00:49]} 58... Ke5 {[%clk 0:00:23]} 59. Rh7 {[%clk 0:00:47.2]}
59... Rf8+ {[%clk 0:00:23.5]} 60. Ke3 {[%clk 0:00:45.6]} 60... Bc5+ {[%clk
0:00:21.3]} 61. Kd3 {[%clk 0:00:47]} 61... Rf4 {[%clk 0:00:21.1]} 62. Rh5+
{[%clk 0:00:39.5]} 62... Kf6 {[%clk 0:00:21.9]} 63. Ke2 {[%clk 0:00:29.2]} 63...
Rc4 {[%clk 0:00:22.1]} 64. Rh6+ {[%clk 0:00:24.1]} 64... Ke5 {[%clk 0:00:22.5]}
65. d6 {[%clk 0:00:19.9]} 65... Re4+ {[%clk 0:00:20.5]} 66. Kf3 {[%clk
0:00:15.9]} 66... Rf4+ {[%clk 0:00:19.2]} 67. Kg2 {[%clk 0:00:17]} 67... Bxd6
{[%clk 0:00:19.8]} 68. Bb3 {[%clk 0:00:17.9]} 68... Rd4 {[%clk 0:00:19.1]} 69.
Kh3 {[%clk 0:00:18.2]} 69... Be7 {[%clk 0:00:19]} 70. Re6+ {[%clk 0:00:19.2]}
70... Kf5 {[%clk 0:00:19.8]} 71. Rxe7 {[%clk 0:00:20.8]} 71... Kf4 {[%clk
0:00:20.2]} 72. Kxh4 {[%clk 0:00:21.1]} 72... Kf5+ {[%clk 0:00:20.5]} 73. Kg3
{[%clk 0:00:22.3]} 73... Kf6 {[%clk 0:00:20.4]} 74. Re6+ {[%clk 0:00:23.2]}
74... Kf5 {[%clk 0:00:20.5]} 75. Rc6 {[%clk 0:00:24.2]} 75... Ke5 {[%clk
0:00:21.3]} 76. Rc5+ {[%clk 0:00:24]} 76... Kd6 {[%clk 0:00:21.7]} 77. Rc4
{[%clk 0:00:25.3]} 77... Rd2 {[%clk 0:00:20.3]} 78. Rxb4 {[%clk 0:00:26.3]}
78... Kc5 {[%clk 0:00:21.1]} 79. Rc4+ {[%clk 0:00:27.5]} 79... Kb5 {[%clk
0:00:21.1]} 80. Kf3 {[%clk 0:00:29]} 80... Rd8 {[%clk 0:00:21.1]} 81. Ke3 {[%clk
0:00:30.2]} 81... Rd1 {[%clk 0:00:21.5]} 82. Rd4 {[%clk 0:00:31.3]} 82... Re1+
{[%clk 0:00:21.1]} 83. Kd3 {[%clk 0:00:32.5]} 83... Re8 {[%clk 0:00:21.4]} 1-0

[Event "*** Titled Tuesday 3|2 Blitz"]
[Site "Chess.com"]
[Date "2017.03.07"]
[Round "11"]
[White "Vegan4future"]
[Black "VeraNebolsina"]
[Result "1/2-1/2"]
[WhiteElo "2243"]
[BlackElo "1986"]
[TimeControl "180+2"]
[EndTime "15:44:32 PST"]
[Termination "Game drawn - insufficient material"]

1. Nc3 {[%clk 0:03:02]} 1... d5 {[%clk 0:02:57.8]} 2. e4 {[%clk 0:02:57.1]} 2...
d4 {[%clk 0:02:57.5]} 3. Nce2 {[%clk 0:02:57]} 3... c5 {[%clk 0:02:57.8]} 4. Ng3
{[%clk 0:02:58.1]} 4... Nc6 {[%clk 0:02:58.4]} 5. Bb5 {[%clk 0:02:57.5]} 5...
Bd7 {[%clk 0:02:53.5]} 6. Nf3 {[%clk 0:02:58.8]} 6... g6 {[%clk 0:02:52.3]} 7.
O-O {[%clk 0:03:00]} 7... Bg7 {[%clk 0:02:53.5]} 8. d3 {[%clk 0:03:01.4]} 8...
Nf6 {[%clk 0:02:44.9]} 9. Bf4 {[%clk 0:02:59.5]} 9... a6 {[%clk 0:02:32.3]} 10.
Bxc6 {[%clk 0:02:59.4]} 10... Bxc6 {[%clk 0:02:33.4]} 11. a4 {[%clk 0:02:57.4]}
11... Nd7 {[%clk 0:02:22.9]} 12. Qc1 {[%clk 0:02:36]} 12... h6 {[%clk
0:02:22.7]} 13. b3 {[%clk 0:02:31.4]} 13... Nf8 {[%clk 0:02:15.2]} 14. Ne5
{[%clk 0:02:20.6]} 14... Ne6 {[%clk 0:02:08.5]} 15. Nxc6 {[%clk 0:02:20.5]}
15... bxc6 {[%clk 0:02:09.7]} 16. Bd2 {[%clk 0:02:20.8]} 16... h5 {[%clk
0:01:46.1]} 17. h3 {[%clk 0:02:19]} 17... h4 {[%clk 0:01:44.9]} 18. Ne2 {[%clk
0:02:14.9]} 18... Qc7 {[%clk 0:01:08.5]} 19. f4 {[%clk 0:02:09.4]} 19... f5
{[%clk 0:00:59.9]} 20. e5 {[%clk 0:01:53]} 20... Qd7 {[%clk 0:00:59.7]} 21. Be1
{[%clk 0:01:49.7]} 21... Nc7 {[%clk 0:01:00.3]} 22. Bf2 {[%clk 0:01:49.2]} 22...
Nd5 {[%clk 0:01:01.2]} 23. Qe1 {[%clk 0:01:49.9]} 23... Nb4 {[%clk 0:00:58.5]}
24. Rc1 {[%clk 0:01:45.8]} 24... Na2 {[%clk 0:00:59.2]} 25. Rb1 {[%clk
0:01:46.4]} 25... Nb4 {[%clk 0:01:00.2]} 26. Rc1 {[%clk 0:01:44.7]} 26... Na2
{[%clk 0:01:01]} 27. Rd1 {[%clk 0:01:46.1]} 27... Nb4 {[%clk 0:01:01.8]} 28. Rd2
{[%clk 0:01:47.6]} 28... Nd5 {[%clk 0:00:45.5]} 29. Bxh4 {[%clk 0:01:48.6]}
29... Ne3 {[%clk 0:00:46.1]} 30. Rf3 {[%clk 0:01:50.2]} 30... Qd5 {[%clk
0:00:45.4]} 31. Bf2 {[%clk 0:01:50]} 31... Bh6 {[%clk 0:00:38]} 32. Bxe3 {[%clk
0:01:45.1]} 32... dxe3 {[%clk 0:00:37.2]} 33. Rxe3 {[%clk 0:01:46.6]} 33... g5
{[%clk 0:00:37.1]} 34. c4 {[%clk 0:01:37.4]} 34... Qd7 {[%clk 0:00:37.1]} 35.
Qf2 {[%clk 0:01:33.4]} 35... gxf4 {[%clk 0:00:35.5]} 36. Nxf4 {[%clk 0:01:35.3]}
36... Qd4 {[%clk 0:00:34.7]} 37. Rf3 {[%clk 0:01:34.7]} 37... Qxe5 {[%clk
0:00:30.2]} 38. Re2 {[%clk 0:01:33.5]} 38... Qa1+ {[%clk 0:00:30.6]} 39. Kh2
{[%clk 0:01:34.3]} 39... O-O-O {[%clk 0:00:28.7]} 40. Qxc5 {[%clk 0:01:27.7]}
40... Qf6 {[%clk 0:00:21.6]} 41. Ne6 {[%clk 0:01:23]} 41... Rd6 {[%clk
0:00:21.4]} 42. Rxf5 {[%clk 0:01:19.6]} 42... Qg6 {[%clk 0:00:18]} 43. Nf4
{[%clk 0:00:54.9]} 43... Bxf4+ {[%clk 0:00:17.8]} 44. Rxf4 {[%clk 0:00:56.8]}
44... Rxd3 {[%clk 0:00:15.7]} 45. Rf3 {[%clk 0:00:38.3]} 45... Rxf3 {[%clk
0:00:09.7]} 46. gxf3 {[%clk 0:00:40.2]} 46... Qf6 {[%clk 0:00:11]} 47. Qe3
{[%clk 0:00:37]} 47... Qd6+ {[%clk 0:00:11.4]} 48. f4 {[%clk 0:00:37.7]} 48...
Qd7 {[%clk 0:00:09.2]} 49. Qe6 {[%clk 0:00:34.3]} 49... Qxe6 {[%clk 0:00:07.8]}
50. Rxe6 {[%clk 0:00:36.2]} 50... Kd7 {[%clk 0:00:09.4]} 51. Re3 {[%clk
0:00:37.3]} 51... Kd6 {[%clk 0:00:10]} 52. Kg3 {[%clk 0:00:37.8]} 52... Rg8+
{[%clk 0:00:11.2]} 53. Kh4 {[%clk 0:00:36.2]} 53... Rh8+ {[%clk 0:00:11.8]} 54.
Kg4 {[%clk 0:00:36.9]} 54... Rg8+ {[%clk 0:00:13.1]} 55. Kf5 {[%clk 0:00:36.9]}
55... Rf8+ {[%clk 0:00:14.5]} 56. Ke4 {[%clk 0:00:38.1]} 56... Rh8 {[%clk
0:00:14.9]} 57. b4 {[%clk 0:00:37.8]} 57... Rh4 {[%clk 0:00:15.4]} 58. c5+
{[%clk 0:00:38.4]} 58... Ke6 {[%clk 0:00:16.2]} 59. Rg3 {[%clk 0:00:39.7]} 59...
Kf6 {[%clk 0:00:16.6]} 60. Rc3 {[%clk 0:00:35.6]} 60... e5 {[%clk 0:00:17.5]}
61. Rf3 {[%clk 0:00:35.7]} 61... Ke6 {[%clk 0:00:18.9]} 62. Ke3 {[%clk 0:00:34]}
62... exf4+ {[%clk 0:00:20]} 63. Rxf4 {[%clk 0:00:35.9]} 63... Rxh3+ {[%clk
0:00:21.7]} 64. Kd4 {[%clk 0:00:36.9]} 64... Ra3 {[%clk 0:00:21.2]} 65. a5
{[%clk 0:00:30.8]} 65... Ra1 {[%clk 0:00:22.2]} 66. Rh4 {[%clk 0:00:31.8]} 66...
Rd1+ {[%clk 0:00:22.3]} 67. Kc4 {[%clk 0:00:32.1]} 67... Rc1+ {[%clk 0:00:23.3]}
68. Kd3 {[%clk 0:00:33.6]} 68... Rb1 {[%clk 0:00:23.9]} 69. Kc2 {[%clk
0:00:33.4]} 69... Rg1 {[%clk 0:00:23.4]} 70. Rh6+ {[%clk 0:00:34.1]} 70... Kd7
{[%clk 0:00:22.3]} 71. Rh7+ {[%clk 0:00:32.2]} 71... Kc8 {[%clk 0:00:22.7]} 72.
Ra7 {[%clk 0:00:32.7]} 72... Rg4 {[%clk 0:00:20.5]} 73. Kb3 {[%clk 0:00:33.6]}
73... Rg3+ {[%clk 0:00:21.2]} 74. Ka4 {[%clk 0:00:34.3]} 74... Kb8 {[%clk
0:00:18.3]} 75. Rxa6 {[%clk 0:00:35.1]} 75... Kb7 {[%clk 0:00:19.5]} 76. Rb6+
{[%clk 0:00:36.6]} 76... Kc7 {[%clk 0:00:21]} 77. a6 {[%clk 0:00:36.1]} 77...
Rg1 {[%clk 0:00:21.2]} 78. Kb3 {[%clk 0:00:30.6]} 78... Ra1 {[%clk 0:00:21.8]}
79. Kb2 {[%clk 0:00:27.2]} 79... Ra4 {[%clk 0:00:21.6]} 80. Kc3 {[%clk
0:00:27.8]} 80... Ra1 {[%clk 0:00:22.1]} 81. Kd4 {[%clk 0:00:28.9]} 81... Rd1+
{[%clk 0:00:22.3]} 82. Ke5 {[%clk 0:00:30.4]} 82... Re1+ {[%clk 0:00:23.4]} 83.
Kf5 {[%clk 0:00:31.8]} 83... Rf1+ {[%clk 0:00:24.7]} 84. Ke4 {[%clk 0:00:33.3]}
84... Re1+ {[%clk 0:00:25.8]} 85. Kd3 {[%clk 0:00:34.8]} 85... Rd1+ {[%clk
0:00:27]} 86. Kc3 {[%clk 0:00:36.2]} 86... Ra1 {[%clk 0:00:27.7]} 87. Rb7+
{[%clk 0:00:35.6]} 87... Kc8 {[%clk 0:00:28.3]} 88. Ra7 {[%clk 0:00:34.7]} 88...
Kb8 {[%clk 0:00:25.6]} 89. Rb7+ {[%clk 0:00:36.1]} 89... Kc8 {[%clk 0:00:26.7]}
90. Rb6 {[%clk 0:00:34.7]} 90... Kc7 {[%clk 0:00:27.8]} 91. Kb2 {[%clk
0:00:36.2]} 91... Ra4 {[%clk 0:00:28]} 92. Kb3 {[%clk 0:00:31.5]} 92... Ra1
{[%clk 0:00:28.7]} 93. b5 {[%clk 0:00:31.8]} 93... cxb5 {[%clk 0:00:26.3]} 94.
Rh6 {[%clk 0:00:31.8]} 94... Ra4 {[%clk 0:00:24.4]} 95. Rh7+ {[%clk 0:00:30.2]}
95... Kb8 {[%clk 0:00:24.9]} 96. Rb7+ {[%clk 0:00:30.5]} 96... Kc8 {[%clk
0:00:20.6]} 97. Rb6 {[%clk 0:00:30.5]} 97... Kc7 {[%clk 0:00:20.7]} 98. Rb7+
{[%clk 0:00:25.3]} 98... Kc6 {[%clk 0:00:19.4]} 99. Rh7 {[%clk 0:00:22.1]} 99...
Kxc5 {[%clk 0:00:19.5]} 100. a7 {[%clk 0:00:20.2]} 100... Kb6 {[%clk 0:00:20.3]}
101. Rh6+ {[%clk 0:00:15.9]} 101... Kxa7 {[%clk 0:00:20.8]} 102. Rh7+ {[%clk
0:00:17.4]} 102... Kb6 {[%clk 0:00:22]} 103. Rh6+ {[%clk 0:00:18.9]} 103... Ka5
{[%clk 0:00:23.4]} 104. Kb2 {[%clk 0:00:19.6]} 104... Rb4+ {[%clk 0:00:23.2]}
105. Ka3 {[%clk 0:00:20.5]} 105... Rg4 {[%clk 0:00:23.9]} 106. Kb3 {[%clk
0:00:21.9]} 106... Rg3+ {[%clk 0:00:25.1]} 107. Kb2 {[%clk 0:00:23.3]} 107...
Ka4 {[%clk 0:00:26.1]} 108. Rh1 {[%clk 0:00:23.6]} 108... Rg2+ {[%clk
0:00:23.3]} 109. Ka1 {[%clk 0:00:23.9]} 109... b4 {[%clk 0:00:23.2]} 110. Kb1
{[%clk 0:00:25.3]} 110... Ka3 {[%clk 0:00:23.5]} 111. Ka1 {[%clk 0:00:26.6]}
111... b3 {[%clk 0:00:21.3]} 112. Kb1 {[%clk 0:00:27.7]} 112... Rb2+ {[%clk
0:00:19.1]} 113. Ka1 {[%clk 0:00:29]} 113... Ra2+ {[%clk 0:00:19.9]} 114. Kb1
{[%clk 0:00:30.4]} 114... Rg2 {[%clk 0:00:19.8]} 115. Ka1 {[%clk 0:00:29]}
115... Kb4 {[%clk 0:00:17.6]} 116. Kb1 {[%clk 0:00:30]} 116... Kc3 {[%clk
0:00:18.5]} 117. Rh3+ {[%clk 0:00:30.8]} 117... Kb4 {[%clk 0:00:19.8]} 118. Rh1
{[%clk 0:00:32.7]} 118... Ka3 {[%clk 0:00:20.7]} 119. Ka1 {[%clk 0:00:33.8]}
119... Ra2+ {[%clk 0:00:20.6]} 120. Kb1 {[%clk 0:00:35]} 120... Rb2+ {[%clk
0:00:22]} 121. Ka1 {[%clk 0:00:36.3]} 121... Ra2+ {[%clk 0:00:23.3]} 122. Kb1
{[%clk 0:00:37.6]} 122... Rc2 {[%clk 0:00:24.3]} 123. Ka1 {[%clk 0:00:37]}
123... Rc3 {[%clk 0:00:25.5]} 124. Kb1 {[%clk 0:00:38.1]} 124... Rg3 {[%clk
0:00:24.2]} 125. Ka1 {[%clk 0:00:39]} 125... Kb4 {[%clk 0:00:25.3]} 126. Kb1
{[%clk 0:00:40.5]} 126... Kc3 {[%clk 0:00:26.2]} 127. Rc1+ {[%clk 0:00:41.9]}
127... Kd2 {[%clk 0:00:23.3]} 128. Rh1 {[%clk 0:00:43.8]} 128... Kc3 {[%clk
0:00:22.4]} 129. Rc1+ {[%clk 0:00:43.8]} 129... Kb4 {[%clk 0:00:24]} 130. Rh1
{[%clk 0:00:45.2]} 130... Ka3 {[%clk 0:00:25.1]} 131. Ka1 {[%clk 0:00:46.5]}
131... b2+ {[%clk 0:00:25.9]} 132. Kb1 {[%clk 0:00:47.8]} 132... Rc3 {[%clk
0:00:27.1]} 133. Rf1 {[%clk 0:00:46]} 133... Rc1+ {[%clk 0:00:27.9]} 134. Rxc1
{[%clk 0:00:46.8]} 134... bxc1=Q+ {[%clk 0:00:28.9]} 135. Kxc1 {[%clk
0:00:45.1]} 1/2-1/2